Cogmind - Beta 13 X1 @@@ ROGUE MODE // 2023.10.04 @ 16:03:52 Player: DuckBoy Result: Destroyed by X-77 Beamer with Gatling Laser Performance ------------- Evolutions (7) 3500 Regions Visited (25) 5000 Robots Destroyed (246) 1230 Value Destroyed (10400) 10400 Prototype IDs (31) 620 Alien Tech Used (0) 0 Bonus (11219) 11219 TOTAL SCORE: 31969 Bonus ------- High Alert Combat Kills 742 Follower Combat Kills 6003 Entered Garrisons 1400 Used RIF Installer 3000 Aligned with FarCom 300 Friendly Fire -226 Cogmind --------- Core Integrity 0/1300 Matter 260/300 Energy 612/790 System Corruption 0% Temperature Hot (226) Movement Core (700) Ox13 Location -3/Garrison Parts ------- > --- POWER (3) -------- Quantum Reactor Light Quantum Reactor > --- PROPULSION (8) --- (None) > --- UTILITY (8) ------ Energy Well Relay Coupler [Demolisher] (19) Advanced Corruption Screen > --- WEAPON (2) ------- (None) > --- INVENTORY (5) ---- Enhanced Quantum Rifle Compact HERF Cannon Enhanced Gauss Cannon Advanced Remote Datajack Peak State ------------ > --- POWER ------------ Backup Power VII Quantum Reactor Light Quantum Reactor > --- PROPULSION ------- Heavy Treads Biometal Heavy Treads Flexi-carbon Leg Field Propulsion Array > --- UTILITY ---------- Advanced Cooling System Advanced Coolant Injector Medium Storage Unit Advanced System Shield Relay Coupler [NC] Relay Coupler [NC] Relay Coupler [Demolisher] Advanced Recalibrator > --- WEAPON ----------- Enhanced Nova Cannon Enhanced Nova Cannon > --- INVENTORY -------- Light Quantum Reactor Advanced Cooling System Advanced Reaction Control System Enhanced Quantum Rifle Enhanced Quantum Rifle Compact HERF Cannon Compact HERF Cannon Matter Neutralizer Enhanced Gauss Cannon Improved Remote Datajack [Rating: 134] Favorites ----------- Power Light Antimatter Reactor Engine Reinforced Deuterium Engine Power Core Fission Core Reactor Light Antimatter Reactor Propulsion Medium Treads Treads Medium Treads Leg Medium Armored Exoskeleton Wheel Wheel Hover Unit Combat Gravmag System Flight Unit Field Propulsion Array Utility Advanced Hacking Suite Device Advanced Transmission Jammer Storage Medium Storage Unit Processor Advanced Corruption Screen Hackware Advanced Hacking Suite Protection Light Armor Plating Weapon Greatsword Energy Gun Field Laser Energy Cannon Heavy Plasma Cannon Ballistic Gun Assault Rifle Ballistic Cannon Gauss Cannon Launcher Rocket Launcher Special Weapon Improved Remote Datajack Impact Weapon Great Maul Slashing Weapon Greatsword Piercing Weapon Lance Build | -11 -10 -10 -9 -9 -9 -8 -8 -8 -8 -8 -7 -7 -7 -7 -6 -6 -6 -6 -5 -5 -5 -4 -4 -3 -3 ------- Run | Jun Mat Min Mat Min Exi Min Mat Gar Mat Gar Fac Gar Fac Gar Fac Was Fac Gar Fac Was Fac Fac Gar Res Gar Slots Evolved 14 | . . . 2 . . . 2 . . . 2 . . . 2 . . . 2 . . 2 . 2 . Power 2 | . . . . . . . . . . . 1 . . . . . . . . . . . . 1 . Propulsion 6 | . . . 1 . . . 1 . . . . . . . 1 . . . 1 . . 1 . 1 . Utility 6 | . . . 1 . . . 1 . . . 1 . . . 1 . . . 1 . . 1 . . . Weapon . | . . . . . . . . . . . . . . . . . . . . . . . . . . Parts Attached 377 | 6 3 5 13 4 4 4 6 13 28 3 25 3 5 3 6 4 52 10 51 8 30 36 13 34 8 Power 41 | 1 . 1 3 1 . . 1 2 6 . 1 1 . . . . 3 . 3 2 3 4 2 4 3 Engine 15 | 1 . 1 2 1 . . 1 2 6 . . . . . . . . . . . . 1 . . . Core 10 | . . . 1 . . . . . . . 1 . . . . . 1 . 3 . 1 1 . 2 . Reactor 16 | . . . . . . . . . . . . 1 . . . . 2 . . 2 2 2 2 2 3 Propulsion 79 | 2 1 1 3 1 3 2 3 4 10 . 4 . . . 1 1 3 2 7 1 5 9 1 13 2 Treads 25 | . 1 1 . . . . 1 . 6 . 3 . . . 1 1 3 2 2 . . . 1 1 2 Leg 8 | . . . . . . . . . . . . . . . . . . . 5 1 1 . . 1 . Wheel 12 | 2 . . 3 . 3 2 2 . . . . . . . . . . . . . . . . . . Hover 4 | . . . . . . . . . . . . . . . . . . . . . 3 . . 1 . Flight 30 | . . . . 1 . . . 4 4 . 1 . . . . . . . . . 1 9 . 10 . Utility 134 | 1 1 . 4 . 1 . 1 4 5 3 15 2 5 . 2 2 23 4 24 3 10 11 4 8 1 Device 69 | . 1 . 2 . . . 1 1 3 1 4 2 1 . 1 2 14 . 17 2 6 4 2 5 . Storage 10 | 1 . . 1 . 1 . . 1 2 1 . . . . . . 1 . . . . . . 1 1 Processor 3 | . . . . . . . . . . . . . . . . . . . . . 1 . . 2 . Hackware 51 | . . . . . . . . 2 . 1 11 . 4 . 1 . 8 4 7 1 3 7 2 . . Protection 1 | . . . 1 . . . . . . . . . . . . . . . . . . . . . . Artifact . | . . . . . . . . . . . . . . . . . . . . . . . . . . Weapon 123 | 2 1 3 3 2 . 2 1 3 7 . 5 . . 3 3 1 23 4 17 2 12 12 6 9 2 Energy Gun 16 | . . . 2 . . . . 1 5 . 2 . . . . . . . . . . 3 . 2 1 Energy Cannon 24 | . . . 1 1 . 1 . . 2 . . . . 1 . . 1 1 3 . . 1 6 5 1 Ballistic Gun 10 | 2 . 2 . . . . . . . . . . . . . . 1 . 2 . 3 . . . . Ballistic Cannon 5 | . . . . 1 . . 1 1 . . . . . . . . . . 1 . . 1 . . . Launcher 6 | . 1 1 . . . 1 . 1 . . . . . . . . 1 . . . . . . 1 . Special Weapon 27 | . . . . . . . . . . . 1 . . 2 1 1 8 2 4 1 4 3 . . . Impact Weapon 13 | . . . . . . . . . . . 2 . . . 2 . 4 . . . 2 3 . . . Slashing Weapon 18 | . . . . . . . . . . . . . . . . . 8 1 6 . 2 1 . . . Piercing Weapon 4 | . . . . . . . . . . . . . . . . . . . 1 1 1 . . 1 . Special Melee Weapon . | . . . . . . . . . . . . . . . . . . . . . . . . . . Unidentified Prototypes 8 | . . . . . . . . . . . 2 . . . . 1 2 . 1 . 1 . . 1 . Corrupted Parts 1 | . . . . . . . . . . . . . . . . 1 . . . . . . . . . System Corruption 8 | . . . . . . . . . . . . . . . . 8 . . . . . . . . . Parts Lost 98 | . . 2 10 2 . . 3 5 7 . 7 . . . . . 1 . 5 . 15 3 7 20 11 Power 19 | . . . 2 . . . . 2 2 . . . . . . . 1 . 3 . 3 1 2 2 1 Propulsion 39 | . . 1 3 1 . . 2 2 3 . 1 . . . . . . . 1 . 4 2 2 10 7 Utility 24 | . . . 2 1 . . 1 . 1 . 4 . . . . . . . . . 6 . 3 6 . Weapon 16 | . . 1 3 . . . . 1 1 . 2 . . . . . . . 1 . 2 . . 2 3 Highest Loss Streak 12 | . . 2 4 1 . . 2 2 3 . 2 . . . . . 1 . 1 . 6 2 3 12 10 To Critical Strikes 2 | . . . . . . . . 1 . . . . . . . . . . . . . . 1 . . Average Slot Usage (%) 80 | . 98 99 76 77 66 88 80 91 69 89 79 88 98 100 82 48 84 91 79 76 62 71 60 60 34 Engine 3 | . 14 14 6 11 11 11 9 8 7 9 7 7 7 7 5 . 1 . . . 1 2 . . . Core 3 | . . . 1 . . . . . . . 2 3 . . . . 4 6 10 3 . 2 6 3 . Reactor 3 | . . . . . . . . . . . . 3 7 7 5 . 5 6 . 7 5 1 1 4 . Treads 16 | . 7 24 11 . . . 1 8 6 36 30 30 30 30 27 28 26 26 5 . . . 1 4 . Leg 2 | . . . . . . . . . . . . . . . . . . . 12 11 7 . . 1 . Wheel 1 | . 20 3 12 16 33 33 33 9 . . . . . . . . . . . . . . . . . Flight 2 | . . . . 5 . . . 16 20 . . . . . . . . . . . . 16 12 7 13 Device 7 | . 12 14 6 11 11 11 8 8 6 14 8 11 15 15 12 6 7 6 4 2 3 3 . 8 . Storage 6 | . 14 14 11 11 11 11 9 9 9 9 7 7 7 7 5 . 5 6 5 5 5 5 5 3 1 Hackware 19 | . . . . . . . . 13 12 11 10 7 13 15 13 13 24 25 28 32 24 27 22 14 4 Energy Cannon 1 | . . . 9 11 . 11 9 1 1 9 1 . . 3 5 . . 4 1 . . . 4 6 3 Special Weapon 1 | . . . . . . . . . . . . 7 7 6 5 . . 5 . 5 2 2 . . . Impact Weapon 1 | . . . . . . . . . . . 3 7 7 3 . . . . . . . 4 4 . . Slashing Weapon 1 | . . . . . . . . . . . . . . . . . 4 . 3 . 1 . . . . Naked Turns . | . . . . . . . . . . . . . . . . . . . . . . . . . . Heaviest Build 98 | 14 18 20 34 40 45 57 64 64 47 67 70 88 88 92 98 1 42 47 49 55 55 47 71 79 46 Greatest Support 183 | 20 20 40 40 20 30 36 52 36 112 112 112 112 112 112 132 3 158 160 183 100 100 52 75 145 150 Greatest Overweight (x) 15 | . 1 1 3 3 1 1 1 6 2 . . . . . . . 4 . . . 7 1 . 3 15 Average Overweight (x) . | . . . . 2 . 1 1 3 . . . . . . . . . . . . . . . . . Largest Inventory Capacity 25 | 8 8 8 15 15 20 20 20 20 15 20 20 20 20 20 20 5 10 10 10 10 10 10 10 25 5 Average Capacity 12 | 7 8 8 14 15 16 20 20 19 13 15 20 20 20 20 17 5 9 10 10 10 10 10 10 9 5 Most Carried 20 | 4 8 8 11 14 16 16 20 20 13 20 20 20 20 18 18 5 10 10 10 10 10 10 10 10 4 Average Carried 11 | 3 7 6 8 12 14 14 18 16 10 11 18 17 19 17 15 4 9 9 9 9 9 9 9 8 4 Final Capacity 20 | 8 8 8 15 15 20 20 20 15 15 20 20 20 20 20 5 5 10 10 10 10 10 10 10 5 5 Final Carried 20 | 4 8 7 10 14 16 16 19 12 12 20 15 19 17 18 5 5 10 9 10 8 9 9 10 4 4 Class Distribution -------------------- 45% | Hacker-Mutant 15% | Mutant 12% | Wizard-Mutant 12% | Commander-Mutant 6% | Scavenger-Mutant 5% | Bothacker-Mutant Dominant Class ---------------- Mutant | -10/Materials Mutant | -10/Mines Mutant | -9/Materials Mutant | -9/Mines Mutant | -9/Exiles Mutant | -8/Mines Scavenger-Mutant | -8/Materials Scavenger-Mutant | -8/Garrison Hacker-Mutant | -8/Materials Mutant | -8/Garrison Hacker-Mutant | -7/Factory Commander-Mutant | -7/Garrison Commander-Mutant | -7/Factory Commander-Mutant | -7/Garrison Bothacker-Mutant | -6/Factory Hacker-Mutant | -6/Waste Hacker-Mutant | -6/Factory Commander-Mutant | -6/Garrison Hacker-Mutant | -5/Factory Wizard-Mutant | -5/Waste Wizard-Mutant | -5/Factory Bothacker-Sprinter | -4/Factory Hacker-Mutant | -4/Garrison Mutant | -3/Research Mutant | -3/Garrison Resources | -11 -10 -10 -9 -9 -9 -8 -8 -8 -8 -8 -7 -7 -7 -7 -6 -6 -6 -6 -5 -5 -5 -4 -4 -3 -3 ----------- Run | Jun Mat Min Mat Min Exi Min Mat Gar Mat Gar Fac Gar Fac Gar Fac Was Fac Gar Fac Was Fac Fac Gar Res Gar Matter Collected 6070 | 308 194 58 411 52 37 50 165 297 245 16 293 44 144 82 22 . 851 189 918 133 592 526 98 250 95 Remotely . | . . . . . . . . . . . . . . . . . . . . . . . . . . Salvage Created 10407 | 88 397 106 661 65 . 146 319 423 351 812 658 60 . 108 22 . 1476 7 1437 . 1411 423 . 1437 . Parts 549 | 1 20 9 44 4 . 5 35 25 19 38 34 3 . 8 . . 63 1 96 . 67 18 . 59 . Haulers Intercepted 1 | . . . 1 . . . . . . . . . . . . . . . . . . . . . . Recyclers Shooed 8 | . . . 2 1 . . 1 . . . . . . . . . 1 . 1 . . 1 . 1 . Parts Field Recycled . | . . . . . . . . . . . . . . . . . . . . . . . . . . Retrieved Matter . | . . . . . . . . . . . . . . . . . . . . . . . . . . Parts Self-Destructed . | . . . . . . . . . . . . . . . . . . . . . . . . . . Prevented . | . . . . . . . . . . . . . . . . . . . . . . . . . . Kills | -11 -10 -10 -9 -9 -9 -8 -8 -8 -8 -8 -7 -7 -7 -7 -6 -6 -6 -6 -5 -5 -5 -4 -4 -3 -3 ------- Run | Jun Mat Min Mat Min Exi Min Mat Gar Mat Gar Fac Gar Fac Gar Fac Was Fac Gar Fac Was Fac Fac Gar Res Gar Combat Hostiles Destroyed 188 | . 6 11 12 3 . . 6 14 9 20 14 1 . 2 . . 18 1 18 . 23 8 . 22 . Melee 63 | . . . . . . . . . . 1 7 . . . . . 16 1 13 . 22 3 . . . Guns 31 | . 6 1 7 3 . . . . 6 . 2 . . . . . . . 1 . . 1 . 4 . Cannons 66 | . . . 5 . . . 6 4 3 19 4 . . 2 . . 1 . 4 . . 2 . 16 . AOE 23 | . . 10 . . . . . 10 . . . . . . . . . . . . 1 1 . 1 . Classes Destroyed 19 | 1 4 3 5 . . . 1 1 . . 1 . . . . . . . 1 . 1 . . 1 . Worker 18 | . . . 3 . . 2 1 . . . 2 . . . . . 3 . 2 . . 2 . 3 . Builder 10 | . 1 . . . . . . . . . 1 . . . . . 3 . 4 . 1 . . . . Tunneler 5 | . . 1 . 1 . . . . . . . . . . 1 . 1 . 1 . . . . . . Hauler 1 | . . . 1 . . . . . . . . . . . . . . . . . . . . . . Recycler 11 | 1 1 . 1 . . 1 . . . . 1 . . . . . 3 . 1 . 1 1 . . . Operator 3 | . 1 . 1 . . . 1 . . . . . . . . . . . . . . . . . . Watcher 14 | . 1 . 1 . . . 2 . 1 . 3 . . . . . 1 . 2 . 1 . . 2 . Swarmer 43 | . . . 3 3 . . 1 5 4 4 . . . . . . 3 1 . . 6 4 . 9 . Grunt 59 | . 6 4 6 . . . . 6 1 11 7 . . . . . 3 . 2 . 4 . . 9 . Brawler 4 | . . . . . . . . 1 . 2 . . . . . . . . . . 1 . . . . Duelist 3 | . . . 1 . . . . . . 1 . . . . . . . . . . 1 . . . . Sentry 19 | . . . 2 . . . 4 2 3 2 . 1 . . . . 3 . 2 . . . . . . Demolisher 2 | . . 2 . . . . . . . . . . . . . . . . . . . . . . . Specialist 3 | . . . . . . . . . . . . . . . . . . . 2 . 1 . . . . Hunter 10 | . . . . . . . 1 . 1 . 2 . . . . . . . 5 . . . . 1 . Programmer 38 | . . . . . . . . . . . 5 . . 2 . . 9 . 7 . 9 4 . 2 . Heavy 1 | . . . . . . . . . . . . . . . . . . . . . 1 . . . . Behemoth 1 | . . . . . . . . . . . . . . . . . . . . . . . . 1 . Assembled 5 | . . 5 . . . . . . . . . . . . . . . . . . . . . . . Guerrilla 1 | . . . . . . . . 1 . . . . . . . . . . . . . . . . . Best Kill Streak 10 | 1 4 4 5 3 . 3 3 8 2 3 3 1 . 1 1 . 3 1 2 . 8 3 . 10 . Combat Bots Only 9 | . 2 4 5 3 . . 1 8 2 3 3 1 . 1 . . 3 1 2 . 8 2 . 9 . Max Kills in Single Turn 6 | 1 1 2 2 1 . 1 1 6 1 1 1 1 . 1 1 . 1 1 1 . 1 1 . 2 . Gunslinging 1 | . . . 1 . . . . . . . . . . . . . . . . . . . . . . Exploded 6 | . . 2 . . . . . 6 . . . . . . . . . . . . 1 1 . 1 . Melee 1 | . . . . . . . . . . 1 1 . . . . . 1 1 1 . 1 1 . . . Uniques/NPCs Destroyed . | . . . . . . . . . . . . . . . . . . . . . . . . . . Combat | -11 -10 -10 -9 -9 -9 -8 -8 -8 -8 -8 -7 -7 -7 -7 -6 -6 -6 -6 -5 -5 -5 -4 -4 -3 -3 -------- Run | Jun Mat Min Mat Min Exi Min Mat Gar Mat Gar Fac Gar Fac Gar Fac Was Fac Gar Fac Was Fac Fac Gar Res Gar Damage Taken 21755 | . 211 392 682 141 . . 256 426 753 136 873 253 12 313 401 . 1656 196 2758 69 3293 1049 1612 2713 3560 Core 3629 | . 35 48 99 8 . . . 68 148 . 76 6 12 30 44 . 168 52 361 24 487 230 424 362 947 Absorbed by Shields 533 | . . . . . . . . 4 . . . 28 4 93 29 . 281 70 . . . . 24 . . Reduced by Siege Mode 217 | . . . . . . . . . . . . . . . . . . . . . . . . 217 . Regen/Repaired (Parts) 2618 | . . . . . . . . . . . 258 196 . 165 . . 984 174 295 . 133 413 . . . Core Remaining (%) 63 | 100 . 66 . . . 73 . . . 60 . . . 82 . . . 68 . . 12 . 43 . . Volleys Fired 625 | 8 29 15 49 10 . 6 20 26 54 56 33 . 4 31 2 . 19 20 88 9 15 28 24 70 9 Largest 2 | 2 2 2 2 2 . 1 2 2 1 1 2 . 1 1 1 . 1 1 2 1 1 2 1 2 2 Hottest 240 | 40 40 66 125 113 . 65 113 113 120 120 126 . 5 65 65 . 90 90 147 7 33 122 94 240 185 Shots Fired 848 | 16 58 30 90 20 . 6 40 37 54 56 40 . 4 31 2 . 19 20 109 9 16 29 25 127 10 Gun 255 | 16 58 9 54 7 . . . 1 45 . 24 . . . . . . . 10 . 8 7 . 15 1 Cannon 474 | . . . 36 13 . 6 40 30 9 56 16 . . 27 1 . 1 7 81 . . 5 25 112 9 Launcher 27 | . . 21 . . . . . 6 . . . . . . . . . . . . . . . . . Special 92 | . . . . . . . . . . . . . 4 4 1 . 18 13 18 9 8 17 . . . Kinetic 180 | 16 58 9 19 3 . . 20 21 . . . . . . . . . . 22 . 8 4 . . . Thermal 527 | . . . 61 10 . 6 20 10 54 56 40 . . 27 1 . 1 7 69 . . 8 20 127 10 Explosive 27 | . . 21 . . . . . 6 . . . . . . . . . . . . . . . . . Electromagnetic 22 | . . . 10 7 . . . . . . . . . . . . . . . . . . 5 . . Robot Hit Streak 24 | 5 8 4 7 3 . 5 7 3 9 20 24 . 3 8 2 . 14 5 20 2 5 9 10 11 2 Robot Miss Streak 5 | 1 4 5 2 3 . 1 3 5 5 . 2 . 1 3 . . 1 1 3 2 2 3 2 4 1 Penetration Max 1 | . . . . . . . . . . . . . . . . . . . . . 1 . . . . Secondary Targets 3 | . 2 . 1 . . . . . . . . . . . . . . . . . . . . . . Max Gunslinging Chain 1 | . 1 . 1 . . . . . . . . . . . . . . . . . . . . . . Shots Hit Robots 623 | 12 37 12 54 10 . 5 23 11 31 12 29 4 3 20 2 . 80 14 81 5 70 28 3 75 2 Core Hits 279 | 2 18 24 26 4 . 3 11 17 11 19 18 1 . 1 . . 21 1 29 . 30 8 1 34 . Critical Kills 5 | . 1 . . . . . . . . . . . . . . . . . 1 . . 1 . 2 . Critical Parts Destroyed 13 | . . . . . . . . . . . 2 2 . . . . 3 . 3 . 1 2 . . . Critical Strikes 35 | . 1 . . . . . 3 . 2 . 2 2 . . . . 7 . 8 . 5 3 . 2 . Burn 2 | . . . . . . . . . 2 . . . . . . . . . . . . . . . . Meltdown 2 | . . . . . . . . . . . . . . . . . . . . . . . . 2 . Destroy 5 | . 1 . . . . . . . . . . . . . . . . . 4 . . . . . . Blast 5 | . . . . . . . 3 . . . . . . . . . . . 2 . . . . . . Smash 11 | . . . . . . . . . . . 2 2 . . . . 3 . . . 1 3 . . . Sever 6 | . . . . . . . . . . . . . . . . . 4 . 2 . . . . . . Impale 4 | . . . . . . . . . . . . . . . . . . . . . 4 . . . . Melee Attacks 371 | . . . . . . . . . . . 16 6 5 . 2 . 91 1 59 . 122 68 1 . . Impact 120 | . . . . . . . . . . . 16 6 5 . 2 . 19 . . . 3 68 1 . . Slashing 143 | . . . . . . . . . . . . . . . . . 72 1 43 . 27 . . . . Piercing 108 | . . . . . . . . . . . . . . . . . . . 16 . 92 . . . . Sneak Attacks 32 | . . . . . . . . . . . 3 . . . 1 . 13 . 10 . 3 2 . . . Combat Hostiles 4 | . . . . . . . . . . . . . . . . . 2 . 1 . 1 . . . . Follow-up Attacks 4 | . . . . . . . . . . . . . . . . . . . . . 4 . . . . Damage Inflicted 23211 | 138 484 743 904 215 . 136 654 794 943 1566 1368 149 . 548 116 . 3731 103 2869 . 3169 1141 161 3203 76 Guns 2810 | 138 484 63 515 55 . . . . 665 . 309 . . . . . . . 22 . 43 121 . 364 31 Cannons 8477 | . . . 386 160 . 136 654 253 278 1560 326 . . 542 . . 31 95 1057 . . 93 122 2739 45 Explosions 1928 | . . 680 . . . . . 541 . . . . . . . . . . . . 305 310 . 92 . Melee 9792 | . . . . . . . . . . . 610 149 . . 116 . 3699 . 1780 . 2821 617 . . . Ramming 204 | . . . 3 . . . . . . 6 123 . . 6 . . 1 8 10 . . . 39 8 . Kinetic 1755 | 138 484 63 167 53 . . 356 117 . . . . . . . . . . 286 . 43 48 . . . Thermal 9891 | . . . 655 107 . 136 298 136 943 1560 635 . . 542 . . 31 95 793 . 305 476 . 3103 76 Explosive 1313 | . . 680 . . . . . 541 . . . . . . . . . . . . . . . 92 . Electromagnetic 256 | . . . 79 55 . . . . . . . . . . . . . . . . . . 122 . . Impact 2372 | . . . . . . . . . . . 610 149 . . 116 . 817 . . . 63 617 . . . Slashing 4842 | . . . . . . . . . . . . . . . . . 2882 . 1477 . 483 . . . . Piercing 2578 | . . . . . . . . . . . . . . . . . . . 303 . 2275 . . . . Highest Corruption 27 | . . . 1 1 1 1 . . . . 4 4 4 6 3 20 20 . 6 27 27 6 24 . . Average Corruption 7 | . . . 1 1 1 1 . . . . 3 4 4 4 2 14 10 . 4 17 18 3 12 . . Corruption Purged 53 | . . . . . . . . . . . . . . . . . 26 . 10 4 13 . . . . Corruption Blocked . | . . . . . . . . . . . . . . . . . . . . . . . . . . Effects 410 | . . . 3 2 1 2 . . . . 51 9 34 18 1 3 40 . 90 17 110 11 18 . . Message Errors 89 | . . . . . . 1 . . . . 6 1 10 2 1 . 8 . 21 2 32 2 3 . . Matter Fused 114 | . . . 3 . 1 . . . . . 12 3 7 5 . 1 15 . 24 1 31 4 7 . . Heat Flow Errors 68 | . . . . . . . . . . . 11 2 4 5 . . 6 . 15 3 19 2 1 . . Energy Discharges 34 | . . . . 2 . . . . . . 5 . 3 2 . . 4 . 10 2 6 . . . . Parts Rejected 2 | . . . . . . . . . . . . . . . . 1 . . . 1 . . . . . Parts Fused 4 | . . . . . . . . . . . . . . . . . . . 1 1 2 . . . . Data Loss (minor) 56 | . . . . . . . . . . . 9 3 7 2 . . 3 . 12 3 11 3 3 . . Data Loss (major) 19 | . . . . . . . . . . . 3 . 2 1 . . 4 . 3 2 4 . . . . Misfires 7 | . . . . . . . . . . . 5 . . . . . . . . . 1 . 1 . . Alerts 9 | . . . . . . 1 . . . . . . 1 1 . . . . 4 1 1 . . . . Misdirections 8 | . . . . . . . . . . . . . . . . 1 . . . 1 3 . 3 . . Overload Shots . | . . . . . . . . . . . . . . . . . . . . . . . . . . Overflow Damage 2614 | . . . 2 . . 13 1 31 25 43 344 70 . 52 86 . 862 . 247 . 373 384 1 80 . Projectiles 296 | . . . . . . 13 1 . 25 43 27 . . 52 . . . . 54 . . . 1 80 . Explosions 181 | . . . 2 . . . . 31 . . . . . . . . . . . . 66 82 . . . Melee 2137 | . . . . . . . . . . . 317 70 . . 86 . 862 . 193 . 307 302 . . . Knockbacks 14 | . . . . . . . 1 1 . . 2 . . . 1 . 4 . 2 . . 3 . . . Impact 10 | . . . . . . . . . . . 2 . . . 1 . 4 . . . . 3 . . . Kinetic 4 | . . . . . . . 1 1 . . . . . . . . . . 2 . . . . . . Secondary . | . . . . . . . . . . . . . . . . . . . . . . . . . . Self-Inflicted Damage 425 | . . 91 30 . . . . 28 . . . . . . . . . . . . 206 70 . . . Shots 10 | . . 5 1 . . . . 1 . . . . . . . . . . . . 2 1 . . . Rammed 29 | . . . 1 . . . . . . 1 17 . . 1 . . 1 2 2 . . . 3 1 . Targets Rammed 40 | . . . 1 . . . . . . 2 23 . . 1 . . 1 3 4 . . . 3 2 . Kicked 1 | . . . . . . . . . . . . . . . . . . . 1 . . . . . . Crushed 10 | . . . . . . . . . . 1 6 . . . . . . 1 1 . . . . 1 . Highest Temperature 331 | . . . 258 . . . 96 55 331 292 229 180 282 281 28 . 262 100 311 243 275 260 264 321 271 Average Temperature 94 | . . . 79 . . . 52 17 105 81 64 93 107 127 18 . 81 39 94 97 102 58 89 106 96 Received Heat Transfer 3076 | . 114 63 213 . . . 18 177 234 63 180 60 6 . 30 . 194 40 309 9 255 39 103 408 561 Effects 9 | . . . 1 . . . . . . . . . . 2 . . . . 2 1 . . . 1 2 Energy Bleed 5 | . . . . . . . . . . . . . . 2 . . . . 2 1 . . . . . Interference 3 | . . . 1 . . . . . . . . . . . . . . . . . . . . . 2 Short Circuit 1 | . . . . . . . . . . . . . . . . . . . . . . . . 1 . Siege Activations 5 | . . . . . . . . . . . . . . . . . . . . . . . . 5 . Total Turns 112 | . . . . . . . . . . . . . . . . . . . . . . . . 112 . Longest Duration 47 | . . . . . . . . . . . . . . . . . . . . . . . . 47 . Robots Corrupted . | . . . . . . . . . . . . . . . . . . . . . . . . . . Combat Hostiles . | . . . . . . . . . . . . . . . . . . . . . . . . . . Parts Fried 17 | . . . . . . . . . . . 5 . . . 1 . 8 . . . . 3 . . . Impact Corruptions 42 | . . . . . . . . . . . 10 2 . . 3 . 17 . . . 1 9 . . . Robots Melted 2 | . . . . . . . . . . . . . . . . . . . . . . . . 2 . Combat Hostiles 1 | . . . . . . . . . . . . . . . . . . . . . . . . 1 . Parts Melted 28 | . . . 1 . . . . 1 5 2 1 . . . . . . . 3 . 2 . . 13 . Heat Transferred 14236 | . . . 1443 185 . 185 407 185 1824 3358 1349 . . 592 . . 50 124 1150 . 200 335 . 2775 74 Parts Sabotaged . | . . . . . . . . . . . . . . . . . . . . . . . . . . Parts Stolen . | . . . . . . . . . . . . . . . . . . . . . . . . . . Parts Stripped . | . . . . . . . . . . . . . . . . . . . . . . . . . . Power Chain Reactions 1 | . . . 1 . . . . . . . . . . . . . . . . . . . . . . Missiles Intercepted . | . . . . . . . . . . . . . . . . . . . . . . . . . . Alert | -11 -10 -10 -9 -9 -9 -8 -8 -8 -8 -8 -7 -7 -7 -7 -6 -6 -6 -6 -5 -5 -5 -4 -4 -3 -3 ------- Run | Jun Mat Min Mat Min Exi Min Mat Gar Mat Gar Fac Gar Fac Gar Fac Was Fac Gar Fac Was Fac Fac Gar Res Gar Peak Influence 1653 | 5 205 277 389 136 . 16 268 1004 560 955 546 760 979 1653 850 157 631 1376 830 305 357 537 670 612 200 Initial 835 | . 3 34 107 76 . . 5 49 489 213 501 231 399 685 835 112 109 441 688 290 73 147 375 338 168 Average 352 | 1 100 183 209 131 . 3 120 607 352 574 239 646 325 1393 792 135 297 1001 244 299 162 188 562 407 169 Maximum Alert Level 5 | . 1 1 1 . . . 1 3 2 3 2 3 3 5 3 . 2 4 3 1 1 2 2 2 1 Low Security (%) 40 | 100 93 64 58 100 . 100 84 5 . . 58 . 50 . . 100 25 . 69 1 64 62 . 4 98 Level 1 29 | . 6 35 41 . . . 15 14 75 37 16 21 12 . 2 . 53 . 10 98 35 31 13 53 1 Level 2 17 | . . . . . . . . 37 24 30 25 4 30 7 18 . 20 20 11 . . 6 86 42 . Level 3 7 | . . . . . . . . 42 . 32 . 74 6 17 78 . . 17 8 . . . . . . Level 4 4 | . . . . . . . . . . . . . . 68 . . . 62 . . . . . . . Level 5 . | . . . . . . . . . . . . . . 7 . . . . . . . . . . . High Security . | . . . . . . . . . . . . . . . . . . . . . . . . . . Max Security . | . . . . . . . . . . . . . . . . . . . . . . . . . . Squads Dispatched 88 | . 2 . 1 . . . 1 . . . 10 . 9 . 4 . 16 . 18 . 7 17 . 3 . Investigation 25 | . . . . . . . . . . . 4 . 1 . . . 4 . 6 . 1 9 . . . Extermination 23 | . . . . . . . . . . . 5 . 1 . 1 . 8 . 4 . 2 1 . 1 . Reinforcement 24 | . 2 . 1 . . . . . . . 1 . 5 . 1 . 3 . 5 . 1 3 . 2 . Assault 6 | . . . . . . . . . . . . . . . 2 . 1 . 3 . . . . . . Garrison 10 | . . . . . . . 1 . . . . . 2 . . . . . . . 3 4 . . . Intercept . | . . . . . . . . . . . . . . . . . . . . . . . . . . Searches Triggered . | . . . . . . . . . . . . . . . . . . . . . . . . . . Construction Impeded 4 | . . . . . . . . . . . 1 . 1 . . . . . . . . . . 2 . Haulers Reinforced 1 | . . . . . . . . . . . . . . . . . 1 . . . . . . . . Active Scanning Responses . | . . . . . . . . . . . . . . . . . . . . . . . . . . Cargo Convoy Interrupts 1 | . . . . . . . . . . . . . . . . . . . 1 . . . . . . Stealth | -11 -10 -10 -9 -9 -9 -8 -8 -8 -8 -8 -7 -7 -7 -7 -6 -6 -6 -6 -5 -5 -5 -4 -4 -3 -3 --------- Run | Jun Mat Min Mat Min Exi Min Mat Gar Mat Gar Fac Gar Fac Gar Fac Was Fac Gar Fac Was Fac Fac Gar Res Gar Distress Signals 27 | . 2 . . . . . 2 . 3 . 3 2 . . . . . . 6 . 1 6 . 2 . Communications Jammed 59 | . . . . . . . . . . . 3 . . . . . 2 . 38 . 16 . . . . Distress Signals 43 | . . . . . . . . . . . 3 . . . . . 1 . 38 . 1 . . . . Times Spotted 454 | . 11 11 19 4 . . 8 18 17 13 22 8 22 17 18 5 40 23 44 6 43 37 16 35 17 Peak Tracking Total 12 | . 3 4 5 4 . . 2 7 3 3 5 4 3 4 10 5 6 3 5 3 8 6 5 9 12 Tactical Retreats 42 | . . . . . . . . 1 1 1 4 . . 2 3 . 4 1 4 . 3 8 2 7 1 Traps | -11 -10 -10 -9 -9 -9 -8 -8 -8 -8 -8 -7 -7 -7 -7 -6 -6 -6 -6 -5 -5 -5 -4 -4 -3 -3 ------- Run | Jun Mat Min Mat Min Exi Min Mat Gar Mat Gar Fac Gar Fac Gar Fac Was Fac Gar Fac Was Fac Fac Gar Res Gar Traps Triggered 25 | . . . 1 1 . . . 4 1 . 2 . . 1 2 . 2 3 3 . 2 . 1 . 2 Indirectly . | . . . . . . . . . . . . . . . . . . . . . . . . . . Trap Hack Attempts . | . . . . . . . . . . . . . . . . . . . . . . . . . . Triggered . | . . . . . . . . . . . . . . . . . . . . . . . . . . Disarmed 6 | . . . . . . . . . . . . . 6 . . . . . . . . . . . . Reprogrammed . | . . . . . . . . . . . . . . . . . . . . . . . . . . Reused . | . . . . . . . . . . . . . . . . . . . . . . . . . . Traps Extracted . | . . . . . . . . . . . . . . . . . . . . . . . . . . Installed . | . . . . . . . . . . . . . . . . . . . . . . . . . . Triggered 1 | . . . . . . . . . . . . . . . . . . . 1 . . . . . . Machines | -11 -10 -10 -9 -9 -9 -8 -8 -8 -8 -8 -7 -7 -7 -7 -6 -6 -6 -6 -5 -5 -5 -4 -4 -3 -3 ---------- Run | Jun Mat Min Mat Min Exi Min Mat Gar Mat Gar Fac Gar Fac Gar Fac Was Fac Gar Fac Was Fac Fac Gar Res Gar Machines Disabled 50 | . 1 . 1 . . . 2 1 3 3 5 . 9 1 2 . 1 3 5 . 5 6 . 1 1 Max in Single Turn 4 | . 1 . 1 . . . 1 1 1 1 1 . . . 1 . . 1 1 . 2 4 . 1 1 Garrison Access 7 | . . . . . . . . . . . 1 . 1 . . . 1 . 1 . 1 2 . . . Garrison Relay 3 | . . . . . . . . . . . . . . . . . . 3 . . . . . . . Machines Repaired . | . . . . . . . . . . . . . . . . . . . . . . . . . . Machines Sabotaged . | . . . . . . . . . . . . . . . . . . . . . . . . . . Overloaded Fab Kills . | . . . . . . . . . . . . . . . . . . . . . . . . . . Hacking | -11 -10 -10 -9 -9 -9 -8 -8 -8 -8 -8 -7 -7 -7 -7 -6 -6 -6 -6 -5 -5 -5 -4 -4 -3 -3 --------- Run | Jun Mat Min Mat Min Exi Min Mat Gar Mat Gar Fac Gar Fac Gar Fac Was Fac Gar Fac Was Fac Fac Gar Res Gar Machines Accessed 144 | . 4 . 1 1 2 . 4 4 5 3 12 2 11 2 3 . 17 3 22 . 12 26 . 9 1 Terminals 81 | . 4 . 1 . . . 3 4 3 3 5 2 8 2 2 . 8 3 10 . 6 11 . 5 1 Fabricators 23 | . . . . . . . . . . . 4 . 1 . 1 . 2 . 6 . 1 6 . 2 . Repair Stations 7 | . . . . . . . . . . . 1 . . . . . 1 . 1 . 1 2 . 1 . Recycling Units 9 | . . . . . . . . . . . . . . . . . 2 . 3 . 2 2 . . . Scanalyzers 6 | . . . . . . . . . 1 . . . . . . . 2 . 1 . . 2 . . . Garrison Access 15 | . . . . . . . 1 . 1 . 2 . 2 . . . 2 . 1 . 2 3 . 1 . Total Hacks 420 | . 10 . 1 1 2 . 6 8 21 4 45 5 35 5 9 . 40 7 71 . 46 89 . 14 1 Successful 274 | . 4 . . 1 2 . 4 3 13 2 33 1 24 1 6 . 30 3 56 . 26 58 . 7 . Failed 146 | . 6 . 1 . . . 2 5 8 2 12 4 11 4 3 . 10 4 15 . 20 31 . 7 1 Catastrophic 25 | . 1 . 1 . . . . 2 1 1 2 2 1 1 1 . 1 . 3 . 2 5 . 1 . Database Lockouts . | . . . . . . . . . . . . . . . . . . . . . . . . . . Manual 226 | . 8 . . . 1 . 5 . 10 2 16 5 25 5 7 . 23 4 32 . 26 51 . 5 1 Terminals 231 | . 10 . 1 . . . 5 8 13 4 12 5 24 5 7 . 19 7 40 . 23 38 . 9 1 Fabricators 94 | . . . . . . . . . . . 26 . 8 . 2 . 5 . 16 . 3 32 . 2 . Repair Stations 25 | . . . . . . . . . . . 3 . . . . . 2 . 3 . 8 7 . 2 . Recycling Units 25 | . . . . . . . . . . . . . . . . . 4 . 9 . 6 6 . . . Scanalyzers 16 | . . . . . . . . . 7 . . . . . . . 5 . 2 . . 2 . . . Garrison Access 26 | . . . . . . . 1 . 1 . 4 . 3 . . . 5 . 1 . 6 4 . 1 . Terminal Hacks 84 | . 2 . . 1 2 . 1 3 3 2 5 1 7 1 3 . 6 3 21 . 6 13 . 4 . Record 2 | . . . . . 1 . . . . . . . . . . . . . . . . 1 . . . Part Schematic 8 | . . . . . . . . . . . 1 . . . . . . . 4 . 1 2 . . . Robot Schematic 9 | . 1 . . . . . . . . . 1 . 3 . . . . . 3 . . 1 . . . Robot Analysis 1 | . . . . . . . . . . . . . . . . . . . 1 . . . . . . Open Door 4 | . . . . 1 . . . 1 . 1 . . . . . . . 1 . . . . . . . Level Access Points 1 | . . . . . . . . . . . . . . . . . . . . . 1 . . . . Branch Access Points 2 | . . . . . . . . . . . . . . . . . . . . . 1 1 . . . Emergency Access Points 2 | . . . . . . . . 1 . . . . . . . . . . . . . . . 1 . Machine Index 4 | . . . . . . . . . . . 1 . 1 . . . . . 1 . 1 . . . . Terminal Index 5 | . . . . . . . . . 1 . . . . . . . 1 . 1 . 1 1 . . . Fabricator Index 1 | . . . . . . . . . . . . . . . . . . . . . . 1 . . . Repair Station Index 1 | . . . . . . . . . . . . . . . . . 1 . . . . . . . . Garrison Index 2 | . . . . . . . . . . . . . . . . . 1 . 1 . . . . . . Unreport Threat 22 | . 1 . . . . . . . 2 . 2 . 2 . 3 . . 1 6 . 1 1 . 3 . Locate Traps 2 | . . . . . . . . . . . . . . . . . . . 1 . . 1 . . . Disarm Traps 1 | . . . . . . . . . . . . . 1 . . . . . . . . . . . . Recall Investigation 4 | . . . . . . . . . . . . . . . . . . . 2 . . 2 . . . Recall Reinforcements 5 | . . . . . . . . . . . . . . . . . 3 . . . . 2 . . . Registered Prototypes 1 | . . . . . . . . . . . . . . . . . . . 1 . . . . . . Zone Layout 1 | . . . . . . . 1 . . . . . . . . . . . . . . . . . . Garrison Registry 5 | . . . . . . . . 1 . 1 . 1 . 1 . . . 1 . . . . . . . Derelict Proto ID Bank 1 | . . . . . 1 . . . . . . . . . . . . . . . . . . . . Fabricator Hacks 62 | . . . . . . . . . . . 21 . 5 . 2 . 4 . 12 . 3 15 . . . Load Schematic 33 | . . . . . . . . . . . 11 . 2 . 1 . 2 . 7 . 1 9 . . . Build 29 | . . . . . . . . . . . 10 . 3 . 1 . 2 . 5 . 2 6 . . . Repair Station Hacks 11 | . . . . . . . . . . . . . . . . . . . 2 . 4 5 . . . Scan Component 5 | . . . . . . . . . . . . . . . . . . . 1 . 2 2 . . . Repair 4 | . . . . . . . . . . . . . . . . . . . 1 . 1 2 . . . Refit 2 | . . . . . . . . . . . . . . . . . . . . . 1 1 . . . Recycling Unit Hacks 1 | . . . . . . . . . . . . . . . . . . . 1 . . . . . . Retrieve Components 1 | . . . . . . . . . . . . . . . . . . . 1 . . . . . . Scanalyzer 13 | . . . . . . . . . 7 . . . . . . . 4 . 2 . . . . . . Insert Component 6 | . . . . . . . . . 3 . . . . . . . 2 . 1 . . . . . . Analyze 7 | . . . . . . . . . 4 . . . . . . . 2 . 1 . . . . . . Garrison Access Hacks 16 | . . . . . . . 1 . 1 . 2 . 2 . . . 2 . 1 . 3 3 . 1 . Unlock Access 8 | . . . . . . . 1 . 1 . 1 . 1 . . . 1 . . . 1 1 . 1 . Seal Access 7 | . . . . . . . . . . . 1 . 1 . . . 1 . 1 . 1 2 . . . Coupler Status 1 | . . . . . . . . . . . . . . . . . . . . . 1 . . . . Unauthorized Hacks 86 | . 2 . . . . . 2 . 2 . 5 . 9 . 1 . 14 . 17 . 10 22 . 2 . Terminals 32 | . 2 . . . . . 2 . 2 . 1 . 5 . 1 . 5 . 5 . 3 4 . 2 . Assimilate 6 | . . . . . . . . . 1 . 1 . 1 . . . 1 . 1 . . 1 . . . Botnet 20 | . 1 . . . . . 1 . 1 . . . 3 . 1 . 4 . 3 . 2 2 . 2 . Operators 6 | . 1 . . . . . 1 . . . . . 1 . . . . . 1 . 1 1 . . . Fabricators 20 | . . . . . . . . . . . 2 . 3 . . . 1 . 4 . . 10 . . . Prioritize 4 | . . . . . . . . . . . . . 1 . . . . . 1 . . 2 . . . Liberate 6 | . . . . . . . . . . . . . 1 . . . 1 . . . . 4 . . . Fabnet 1 | . . . . . . . . . . . . . . . . . . . 1 . . . . . . Haulers 3 | . . . . . . . . . . . 1 . 1 . . . . . . . . 1 . . . Recompile 6 | . . . . . . . . . . . 1 . . . . . . . 2 . . 3 . . . Repair Stations 5 | . . . . . . . . . . . 1 . . . . . 1 . 1 . 1 1 . . . Mechanics 5 | . . . . . . . . . . . 1 . . . . . 1 . 1 . 1 1 . . . Recycling Units 19 | . . . . . . . . . . . . . . . . . 4 . 7 . 4 4 . . . Monitor 1 | . . . . . . . . . . . . . . . . . . . 1 . . . . . . Reject 6 | . . . . . . . . . . . . . . . . . 2 . 2 . 1 1 . . . Recyclers 4 | . . . . . . . . . . . . . . . . . 1 . 1 . 1 1 . . . Mask 8 | . . . . . . . . . . . . . . . . . 1 . 3 . 2 2 . . . Scanalyzers 2 | . . . . . . . . . . . . . . . . . . . . . . 2 . . . Extract 2 | . . . . . . . . . . . . . . . . . . . . . . 2 . . . Garrison Access 8 | . . . . . . . . . . . 1 . 1 . . . 3 . . . 2 1 . . . Broadcast 2 | . . . . . . . . . . . . . . . . . 1 . . . 1 . . . . Reprogram 2 | . . . . . . . . . . . . . 1 . . . . . . . . 1 . . . Intercept 2 | . . . . . . . . . . . . . . . . . 1 . . . 1 . . . . Eject 2 | . . . . . . . . . . . 1 . . . . . 1 . . . . . . . . Data Cores Recovered 2 | . . . . . . . 1 . . . 1 . . . . . . . . . . . . . . Used . | . . . . . . . . . . . . . . . . . . . . . . . . . . Hacking Detections 98 | . 3 . 1 . . . 2 3 4 1 9 2 9 2 2 . 11 2 14 . 9 16 . 7 1 Full Trace Events 14 | . . . . . . . . . . 1 1 1 . . . . 2 1 4 . 1 3 . . . Feedback Events . | . . . . . . . . . . . . . . . . . . . . . . . . . . Feedback Blocked . | . . . . . . . . . . . . . . . . . . . . . . . . . . Robot Schematics Acquired 9 | . 1 . . . . . . . . . 1 . 3 . . . . . 3 . . 1 . . . Robots Built 46 | . . . . . . . . . . . 17 . 7 . 2 . 2 . 8 . 3 7 . . . Authchips 17 | . . . . . . . . . . . 9 . 3 . 1 . 1 . 1 . . 2 . . . Time 2221 | . . . . . . . . . . . 576 . 268 . 67 . 134 . 425 . 285 466 . . . Total Robot Build Rating 239 | . . . . . . . . . . . 65 . 28 . 8 . 8 . 64 . 15 51 . . . Part Schematics Acquired 31 | . . . . . . . . . 3 . 1 . . . . . 1 . 5 . 1 20 . . . Parts Built 7 | . . . . . . . . . . . 1 . . . . . 1 . 1 . . 4 . . . Authchips 3 | . . . . . . . . . . . 1 . . . . . . . 1 . . 1 . . . Time 338 | . . . . . . . . . . . 53 . . . . . 53 . 35 . . 197 . . . Total Part Build Rating 50 | . . . . . . . . . . . 6 . . . . . 6 . 6 . . 32 . . . Parts Repaired 4 | . . . . . . . . . . . . . . . . . . . 1 . 1 2 . . . Time 149 | . . . . . . . . . . . . . . . . . . . 44 . 43 62 . . . Parts Recycled . | . . . . . . . . . . . . . . . . . . . . . . . . . . Recycled Matter . | . . . . . . . . . . . . . . . . . . . . . . . . . . Retrieved Matter . | . . . . . . . . . . . . . . . . . . . . . . . . . . Retrieved Components . | . . . . . . . . . . . . . . . . . . . . . . . . . . Parts Scanalyzed 5 | . . . . . . . . . 3 . . . . . . . 1 . 1 . . . . . . Part Schematics Acquired 5 | . . . . . . . . . 3 . . . . . . . 1 . 1 . . . . . . Parts Damaged . | . . . . . . . . . . . . . . . . . . . . . . . . . . Bothacking | -11 -10 -10 -9 -9 -9 -8 -8 -8 -8 -8 -7 -7 -7 -7 -6 -6 -6 -6 -5 -5 -5 -4 -4 -3 -3 ------------ Run | Jun Mat Min Mat Min Exi Min Mat Gar Mat Gar Fac Gar Fac Gar Fac Was Fac Gar Fac Was Fac Fac Gar Res Gar Used RIF Installer 6 | . . . . . . . . 1 . 1 . 1 . 2 . . . 1 . . . . . . . Hotswap 1 | . . . . . . . . . . . . . . 1 . . . . . . . . . . . Zone Cloak 2 | . . . . . . . . . . . . . . 1 . . . 1 . . . . . . . Structural Interface 1 | . . . . . . . . . . 1 . . . . . . . . . . . . . . . Autooverride 1 | . . . . . . . . . . . . 1 . . . . . . . . . . . . . Robots Hacked 53 | . . . . . . . . . . . . . 2 . 1 . 14 4 8 6 4 12 2 . . Non-combat 26 | . . . . . . . . . . . . . 2 . 1 . 8 . 5 . 2 8 . . . Combat 27 | . . . . . . . . . . . . . . . . . 6 4 3 6 2 4 2 . . Autooverrided 4 | . . . . . . . . . . . . . . . . . . 1 1 . 1 1 . . . Robot Hacks Applied 50 | . . . . . . . . . . . . . 2 . 1 . 14 3 8 7 3 12 . . . no_distress 1 | . . . . . . . . . . . . . . . . . . . 1 . . . . . . find_chute 4 | . . . . . . . . . . . . . . . 1 . . . 1 . . 2 . . . ignore_repairs 8 | . . . . . . . . . . . . . 2 . . . . . . . 2 4 . . . find_fabricator 1 | . . . . . . . . . . . . . . . . . 1 . . . . . . . . find_recycling 1 | . . . . . . . . . . . . . . . . . 1 . . . . . . . . block_reporting 1 | . . . . . . . . . . . . . . . . . 1 . . . . . . . . recall_investigation 2 | . . . . . . . . . . . . . . . . . . . . . . 2 . . . ignore_targets 7 | . . . . . . . . . . . . . . . . . . . . 7 . . . . . overload_power 1 | . . . . . . . . . . . . . . . . . . . . . . 1 . . . amplify_resonance 1 | . . . . . . . . . . . . . . . . . . . . . . 1 . . . reboot_system 2 | . . . . . . . . . . . . . . . . . . . 1 . . 1 . . . overwrite_iff 3 | . . . . . . . . . . . . . . . . . 3 . . . . . . . . formatsys_low 8 | . . . . . . . . . . . . . . . . . 5 . 3 . . . . . . formatsys_high 10 | . . . . . . . . . . . . . . . . . 3 3 2 . 1 1 . . . Relay Couplers Released 43 | . . . . . . . . . . . 4 . 1 . . . 16 12 3 . 4 3 . . . Ejected 7 | . . . . . . . . . . . 4 . . . . . 3 . . . . . . . . Machine Destruction 22 | . . . . . . . . . . . . . 1 . . . 2 12 3 . 1 3 . . . Programmers 14 | . . . . . . . . . . . . . . . . . 11 . . . 3 . . . . Attached 17 | . . . . . . . . . . . . . . . . . 5 4 2 1 1 2 2 . . Fabnet Peak Effective % 3 | . . . . . . . . . . . . . . . . . . . . . . 3 3 1 1 Autooverrided 2 | . . . . . . . . . . . . . . . . . . . . . . . 2 . . Robots Rewired 9 | . . . . . . . . 3 . . . . . . . . . 3 1 . . 2 . . . Allies Hacked 32 | . . . . . . . . . . . 2 4 7 2 . . 2 . 4 2 3 2 4 . . Hacks Repelled 1 | . . . . . . . . . . . . . . . . . . . . . 1 . . . . Allies | -11 -10 -10 -9 -9 -9 -8 -8 -8 -8 -8 -7 -7 -7 -7 -6 -6 -6 -6 -5 -5 -5 -4 -4 -3 -3 -------- Run | Jun Mat Min Mat Min Exi Min Mat Gar Mat Gar Fac Gar Fac Gar Fac Was Fac Gar Fac Was Fac Fac Gar Res Gar Total Allies 130 | . . . . . . . . 5 . 2 20 5 15 1 2 . 19 7 23 3 7 15 6 . . Largest Group 21 | . . . . . . . . 3 . 2 18 20 21 20 3 . 10 11 10 11 13 7 8 . . Highest-Rated Group 1067 | . . . . . . . . 70 . 64 609 648 615 545 87 . 304 376 687 969 1067 422 462 . . Highest-Rated Ally 141 | . . . . . . . . 39 . 39 39 37 37 37 37 . 47 51 82 141 141 82 82 . . Total Orders 139 | . . . . . . . . 1 . . 3 3 1 8 11 . 30 10 27 . 12 22 10 1 . STAY 63 | . . . . . . . . 1 . . 1 1 . 4 3 . 12 5 15 . 8 6 7 . . ROAM 2 | . . . . . . . . . . . . . . . 1 . . . 1 . . . . . . FOLLOW 29 | . . . . . . . . . . . 1 1 . 2 5 . 4 2 7 . 2 3 2 . . AID 24 | . . . . . . . . . . . 1 1 1 2 . . 8 3 2 . 2 3 1 . . COLLECT 6 | . . . . . . . . . . . . . . . . . 6 . . . . . . . . EXPLORE 15 | . . . . . . . . . . . . . . . 2 . . . 2 . . 10 . 1 . Ally Attacks 971 | . . . . . . . . 25 . 27 48 47 107 107 6 . 42 121 84 170 70 53 64 . . Total Damage 26994 | . . . . . . . . 362 . 453 944 1574 3389 3113 203 . 1405 4160 2492 2615 2198 1922 2164 . . Kills 208 | . . . . . . . . 6 . 3 9 16 35 27 1 . 10 29 25 5 13 12 17 . . Allies Corrupted 10 | . . . . . . . . . . . . . . 2 . . 1 . 3 . 1 1 2 . . Allies Melted 2 | . . . . . . . . . . . . . . . . . . 1 1 . . . . . . Intel | -11 -10 -10 -9 -9 -9 -8 -8 -8 -8 -8 -7 -7 -7 -7 -6 -6 -6 -6 -5 -5 -5 -4 -4 -3 -3 ------- Run | Jun Mat Min Mat Min Exi Min Mat Gar Mat Gar Fac Gar Fac Gar Fac Was Fac Gar Fac Was Fac Fac Gar Res Gar Robot Analysis Total 1 | . . . . . . . . . . . . . . . . . . . 1 . . . . . . Derelict Logs Recovered . | . . . . . . . . . . . . . . . . . . . . . . . . . . Drone Launches 32 | . . . . . . . . . . . . . . . 2 . . . 7 . . 21 . 2 . Drone Recoveries 5 | . . . . . . . . . . . . . . . . . . . 1 . . 4 . . . Exploration | -11 -10 -10 -9 -9 -9 -8 -8 -8 -8 -8 -7 -7 -7 -7 -6 -6 -6 -6 -5 -5 -5 -4 -4 -3 -3 ------------- Run | Jun Mat Min Mat Min Exi Min Mat Gar Mat Gar Fac Gar Fac Gar Fac Was Fac Gar Fac Was Fac Fac Gar Res Gar Turns Passed 33417 | 88 323 256 491 346 241 167 433 1107 598 1220 3642 580 1512 854 512 59 8152 1217 5107 406 2664 1712 373 1183 174 Spaces Moved 19414 | 60 239 145 223 161 277 147 303 781 366 648 1862 329 862 429 368 97 2468 661 3218 174 1518 2685 424 801 168 Core 719 | 2 . . . . . . . . . . . . . . 121 97 460 . . . 2 . . 5 32 Treads 8080 | . . 97 80 . . . . . 42 648 1862 329 862 429 247 . 2008 661 468 . . . 41 299 7 Legs 4354 | . . . . . . . . . . . . . . . . . . . 2750 174 1428 . . 2 . Wheels 1973 | 58 239 48 143 161 277 147 303 597 . . . . . . . . . . . . . . . . . Hover 164 | . . . . . . . . . . . . . . . . . . . . . 88 9 . 46 21 Flight 4124 | . . . . . . . . 184 324 . . . . . . . . . . . . 2676 383 449 108 Fastest Speed 29 | 50 80 95 95 95 80 95 101 34 34 160 160 160 160 160 50 50 50 156 106 140 56 29 34 34 37 Average Speed 117 | 79 89 138 129 118 84 95 103 122 67 160 160 160 160 160 123 50 143 156 122 140 138 34 45 94 79 Slowest Speed 800 | 80 95 160 240 125 95 101 105 170 240 160 160 160 160 160 162 50 250 156 157 140 400 119 145 260 800 Overloaded Moves . | . . . . . . . . . . . . . . . . . . . . . . . . . . Propulsion Burnouts . | . . . . . . . . . . . . . . . . . . . . . . . . . . Robots Hopped 27 | . . . . . . . . . 1 . . . . . . . . . . . . 12 . 9 5 Cave-ins Triggered 3 | . . . . . . . . . . . . . . . . . . . . . . . 3 . . Exploration Rate (%) 43 | 4 43 31 28 37 69 26 28 85 24 82 32 57 25 60 11 74 34 66 70 71 29 66 33 28 28 Regions Visited 25 Branch Regions 4 Pre-discovered Areas 1 | . . . . . 1 . . . . . . . . . . . . . . . . . . . . Known Exits Taken 8 | . . . . . . . 1 . 1 . 1 . 1 . . . 1 . . . 1 1 . 1 . Unknown Exits Taken 7 | 1 1 1 1 1 1 1 . . . . . . . . . . . . . . . . . . . Scrap Searched 2 | . . 1 . 1 . . . . . . . . . . . . . . . . . . . . . Spaces Dug 220 | . . . . . . . . 12 1 . 11 1 4 . 1 . 12 . 55 . 35 49 20 16 3 Terrain Destroyed 524 | . . 160 5 3 . 1 12 27 12 1 11 1 4 . 1 . 12 . 69 . 41 82 21 57 4 Melee 127 | . . . . . . . . . . . 4 1 4 . 1 . 12 . 21 . 35 48 1 . . Projectile 150 | . . . . 3 . 1 12 . 12 1 7 . . . . . . . 48 . . 3 20 39 4 AOE 247 | . . 160 5 . . . . 27 . . . . . . . . . . . . 6 31 . 18 . Terrain Rammed . | . . . . . . . . . . . . . . . . . . . . . . . . . . Walls Destroyed . | . . . . . . . . . . . . . . . . . . . . . . . . . . Machines Disabled . | . . . . . . . . . . . . . . . . . . . . . . . . . . Actions | -11 -10 -10 -9 -9 -9 -8 -8 -8 -8 -8 -7 -7 -7 -7 -6 -6 -6 -6 -5 -5 -5 -4 -4 -3 -3 --------- Run | Jun Mat Min Mat Min Exi Min Mat Gar Mat Gar Fac Gar Fac Gar Fac Was Fac Gar Fac Was Fac Fac Gar Res Gar Total 28470 | 81 289 170 332 295 287 166 380 899 674 776 2442 370 982 566 424 107 6891 834 4179 332 1833 3302 577 1087 195 Wait 7314 | 4 15 2 37 117 . 10 44 16 208 46 464 29 102 103 35 2 4214 125 719 139 135 464 104 168 12 Move 19343 | 59 238 144 222 160 276 146 303 780 364 647 1861 328 862 428 368 96 2467 660 3218 173 1517 2661 421 784 160 Hop 23 | . . . . . . . . . 1 . . . . . . . . . . . . 11 . 8 3 Pick Up 126 | 4 4 2 8 3 2 . 6 3 4 16 11 4 2 . . . 15 2 16 . 8 7 3 6 . Fast Attach 137 | 6 1 . 7 1 1 . 1 4 6 . 5 1 1 . 1 3 14 3 15 4 12 14 6 23 8 Attach 127 | . . 2 5 1 2 2 3 6 18 1 16 1 3 . 5 1 18 3 11 1 9 11 2 6 . Detach 54 | . . . . . 3 . . 3 11 . 1 . . . 4 2 13 2 5 . 4 5 . 1 . Swap 114 | . 2 3 1 2 1 2 2 3 4 2 5 1 1 3 . . 20 4 25 3 9 11 5 5 . Drop 136 | . . 2 2 1 2 . 1 11 4 6 7 . 2 . 7 3 19 7 19 3 6 14 6 14 . Fire 625 | 8 29 15 49 10 . 6 20 26 54 56 33 . 4 31 2 . 19 20 88 9 15 28 24 70 9 Melee 361 | . . . . . . . . . . . 16 6 5 . 2 . 91 1 56 . 115 68 1 . . Ram . | . . . . . . . . . . . . . . . . . . . . . . . . . . Kick 1 | . . . . . . . . . . . . . . . . . . . 1 . . . . . . Crush 39 | . . . 1 . . . . . . 2 23 . . 1 . . 1 3 3 . . . 3 2 . Escape Stasis 50 | . . . . . . . . 42 . . . . . . . . . . . . 3 . 2 . 3 Rewire 10 | . . . . . . . . 5 . . . . . . . . . 4 1 . . . . . . Trap . | . . . . . . . . . . . . . . . . . . . . . . . . . . Miscellaneous 10 | . . . . . . . . . . . . . . . . . . . 2 . . 8 . . . Route ------- -11/Junkyard -10/Materials (discovered 2 exits: *Mat / [*Min]) -10/Mines -9/Materials -9/Mines (discovered 2 exits: *Mat / *Exi) -9/Exiles -8/Mines -8/Materials (discovered 2 exits: *Fac / Gar) -8/Garrison (discovered 4 exits: *Mat x4) -8/Materials -8/Garrison (discovered 3 exits: *Fac x3) -7/Factory (discovered 3 exits: *Fac / [*Low] / Gar) -7/Garrison (discovered 3 exits: *Fac x3) -7/Factory (discovered 2 exits: *Fac / Gar) -7/Garrison (discovered 3 exits: *Fac x3) -6/Factory -6/Waste -6/Factory (discovered 6 exits: *Fac x3 / [*Low x2] / Gar) -6/Garrison (discovered 3 exits: *Fac x3) -5/Factory -5/Waste -5/Factory (discovered 7 exits: *Fac x4 / *Upp x2 / Gar) -4/Factory (discovered 7 exits: *Res x4 / *Upp x2 / Gar) -4/Garrison -3/Research -3/Garrison History --------- Turn | Location | Event 25 | -11/Junkyard | Discovered new exit (range 15) 89 | -11/Junkyard | Entered Materials 245 | -10/Materials | Discovered new exit (range 16) 316 | -10/Materials | Build established: Mutant 341 | -10/Materials | Discovered new exit (range 7) 412 | -10/Materials | Entered Mines 419 | -10/Mines | Received a Rocket Launcher from a helpful Derelict 420 | -10/Mines | Assembled infested the area 607 | -10/Mines | Discovered new exit (range 10) 668 | -10/Mines | Entered Materials 668 | -9/Materials | Evolved 2 slots: Propulsion x1, Utility x1 767 | -9/Materials | Lost 4 parts (1p1u2w) 851 | -9/Materials | Lost 3 parts (1p1n1u) 1130 | -9/Materials | Discovered new exit (range 7) 1159 | -9/Materials | Entered Mines 1194 | -9/Mines | Met a Derelict who couldn't figure out how to use a Trap Extractor 1483 | -9/Mines | Discovered new exit (range 6) 1500 | -9/Mines | Deemed a non-threat by the Exiles lab entrance 1500 | -9/Mines | Discovered new exit (range 5) 1505 | -9/Mines | Entered Exiles 1528 | -9/Exiles | Met 8R-AWN 1543 | -9/Exiles | Met EX-HEX 1569 | -9/Exiles | Met EX-BIN 1578 | -9/Exiles | Aligned with FarCom system 1579 | -9/Exiles | Given EX-Vault access code 1598 | -9/Exiles | Opened EX-Vault 1604 | -9/Exiles | Found Gui. Plasma Cannon 1621 | -9/Exiles | Warned to stay clear of 0b10 Research branches 1685 | -9/Exiles | Met EX-DEC 1705 | -9/Exiles | Learned location of Zion (-6) 1738 | -9/Exiles | Discovered new exit (range 10) 1746 | -9/Exiles | Left Exiles lab with Gui. Plasma Cannon 1746 | -9/Exiles | Entered Mines 1906 | -8/Mines | Discovered new exit (range 8) 1913 | -8/Mines | Entered Materials 1913 | -8/Materials | Evolved 2 slots: Propulsion x1, Utility x1 2182 | -8/Materials | Build established: Scavenger-Mutant 2192 | -8/Materials | Garrison activated, responded to threat 2269 | -8/Materials | Discovered new exit (range 8) 2346 | -8/Materials | Identified exit to Garrison 2346 | -8/Materials | Entered Garrison 2346 | -8/Garrison | Warlord forces raided the area 2369 | -8/Garrison | Warlord forces retreated 2376 | -8/Garrison | Triggered checkpoint 2382 | -8/Garrison | Triggered checkpoint 2386 | -8/Garrison | Triggered checkpoint 2409 | -8/Garrison | Rescued a captive Derelict 2410 | -8/Garrison | Rescued a captive Derelict 2438 | -8/Garrison | Triggered checkpoint 2599 | -8/Garrison | Destroyed 8 combat bots 2605 | -8/Garrison | Triggered checkpoint 2691 | -8/Garrison | Discovered new exit (range 12) 2748 | -8/Garrison | Installed Relay Interface Framework 3027 | -8/Garrison | Discovered new exit (range 10) 3099 | -8/Garrison | Discovered new exit (range 5) 3248 | -8/Garrison | Discovered new exit (range 10) 3300 | -8/Garrison | Triggered checkpoint 3425 | -8/Garrison | Discovered new exit (range 65) 3425 | -8/Garrison | Discovered new exit (range 29) 3425 | -8/Garrison | Discovered new exit (range 58) 3425 | -8/Garrison | Discovered new exit (range 57) 3453 | -8/Garrison | Entered Materials 3625 | -8/Materials | Build established: Hacker-Mutant 3747 | -8/Materials | Lost 3 parts (2n1u) 4051 | -8/Materials | Identified exit to Garrison 4051 | -8/Materials | Entered Garrison 4157 | -8/Garrison | Triggered checkpoint 4169 | -8/Garrison | Triggered checkpoint 4256 | -8/Garrison | Build established: Mutant 4285 | -8/Garrison | Discovered new exit (range 11) 4320 | -8/Garrison | Triggered checkpoint 4415 | -8/Garrison | Rescued a captive Derelict 4416 | -8/Garrison | Rescued a captive Derelict 4505 | -8/Garrison | Triggered checkpoint 4550 | -8/Garrison | Triggered checkpoint 4606 | -8/Garrison | Discovered new exit (range 10) 4721 | -8/Garrison | Expanded RIF knowledge: Structural Interface 4948 | -8/Garrison | Discovered new exit (range 3) 4996 | -8/Garrison | Triggered checkpoint 5068 | -8/Garrison | Discovered new exit (range 70) 5068 | -8/Garrison | Discovered new exit (range 13) 5068 | -8/Garrison | Discovered new exit (range 42) 5164 | -8/Garrison | Build established: Hacker-Mutant 5271 | -8/Garrison | Entered Factory 5271 | -7/Factory | Accompanied by 1 ally 5271 | -7/Factory | Evolved 2 slots: Power x1, Utility x1 5951 | -7/Factory | Fabricated Adv. Hacking Suite (x1) 6283 | -7/Factory | Discovered new exit (range 7) 7081 | -7/Factory | Build established: Mutant 7227 | -7/Factory | Fabricated P-60 Hacker? 7732 | -7/Factory | Fabricated P-60 Hacker? 7938 | -7/Factory | Hacker 4d assimilated hostile Y-54 Guardian 7947 | -7/Factory | Discovered new exit (range 9) 8118 | -7/Factory | Fabricated P-60 Hacker (x2) 8161 | -7/Factory | Fabricated M-13 Machinist (x1) 8236 | -7/Factory | Fabricated P-60 Hacker (x2) 8262 | -7/Factory | Build established: Commander-Mutant 8309 | -7/Factory | Fabricated P-60 Hacker (x2) 8391 | -7/Factory | Fabricated P-60 Hacker (x2) 8462 | -7/Factory | Fabricated P-60 Hacker (x2) 8543 | -7/Factory | Fabricated P-60 Hacker (x2) 8664 | -7/Factory | Hacker 4o assimilated hostile L-41 Fighter 8902 | -7/Factory | Identified exit to Garrison 8913 | -7/Factory | Entered Garrison 8913 | -7/Garrison | Accompanied by 18 allies 8953 | -7/Garrison | Rescued a captive Derelict 9021 | -7/Garrison | Hacker 4e assimilated hostile W-25 Informer 9038 | -7/Garrison | Triggered checkpoint 9066 | -7/Garrison | Triggered checkpoint 9084 | -7/Garrison | Discovered new exit (range 29) 9084 | -7/Garrison | Discovered new exit (range 57) 9084 | -7/Garrison | Discovered new exit (range 38) 9142 | -7/Garrison | Spotted B-75 Beast 9157 | -7/Garrison | Allies destroyed B-75 Beast 9466 | -7/Garrison | Expanded RIF knowledge: Autooverride 9493 | -7/Garrison | Entered Factory 9493 | -7/Factory | Accompanied by 14 allies 9852 | -7/Factory | Hacker 4d assimilated hostile L-41 Fighter 10170 | -7/Factory | Hacker 4f assimilated hostile W-25 Informer 10238 | -7/Factory | Discovered new exit (range 7) 10578 | -7/Factory | Fabricated B-48 Gladiator (x3) 10654 | -7/Factory | Fabricated P-60 Hacker (x2) 10721 | -7/Factory | Fabricated P-60 Hacker? 10905 | -7/Factory | Garrison activated, responded to threat 10919 | -7/Factory | Hacker 4f assimilated hostile X-57 Shotgunner 10929 | -7/Factory | Hacker 4f assimilated hostile G-47 Trooper 10937 | -7/Factory | Hacker 4e assimilated hostile G-47 Trooper 10966 | -7/Factory | Identified exit to Garrison 11005 | -7/Factory | Entered Garrison 11005 | -7/Garrison | Accompanied by 20 allies 11064 | -7/Garrison | Triggered checkpoint 11162 | -7/Garrison | Triggered checkpoint 11200 | -7/Garrison | Triggered checkpoint 11200 | -7/Garrison | Hacker 4i assimilated hostile G-47 Trooper 11218 | -7/Garrison | Triggered checkpoint 11228 | -7/Garrison | Triggered checkpoint 11276 | -7/Garrison | Discovered new exit (range 58) 11276 | -7/Garrison | Discovered new exit (range 10) 11276 | -7/Garrison | Discovered new exit (range 39) 11292 | -7/Garrison | Expanded RIF knowledge: Hotswap 11392 | -7/Garrison | Triggered checkpoint 11446 | -7/Garrison | P-70 Sage assimilated allied Gladiator 4b 11478 | -7/Garrison | P-70 Sage assimilated allied Guardian 4a 11620 | -7/Garrison | Expanded RIF knowledge: Zone Cloak 11752 | -7/Garrison | Build established: Bothacker-Mutant 11859 | -7/Garrison | Entered Factory 11859 | -6/Factory | Accompanied by 2 allies 11859 | -6/Factory | Evolved 2 slots: Propulsion x1, Utility x1 12209 | -6/Factory | First assault squad dispatched 12274 | -6/Factory | Fabricated P-60 Hacker? 12371 | -6/Factory | Sucked down chute 12371 | -6/Factory | Entered Waste 12372 | -6/Waste | Found Prototype Device 12372 | -6/Waste | Identified System Purifier 12378 | -6/Waste | Spotted C-40 Crusher 12385 | -6/Waste | Spotted C-40 Crusher 12386 | -6/Waste | EMP discharged 12386 | -6/Waste | System corruption reached 10% 12403 | -6/Waste | Spotted C-40 Crusher 12411 | -6/Waste | Spotted C-40 Crusher 12412 | -6/Waste | Spotted C-40 Crusher 12425 | -6/Waste | Discovered new exit (range 10) 12430 | -6/Waste | Entered Factory 12569 | -6/Factory | Fabricated P-60 Hacker? 12618 | -6/Factory | Build established: Hacker-Mutant 12772 | -6/Factory | Discovered new exit (range 16) 13002 | -6/Factory | Discovered new exit (range 7) 13170 | -6/Factory | Discovered new exit (range 16) 13613 | -6/Factory | Discovered new exit (range 12) 13634 | -6/Factory | Found Prototype Launcher 13634 | -6/Factory | Identified Scatter Rocket Array 14282 | -6/Factory | Discovered new exit (range 6) 14795 | -6/Factory | Identified exit to Garrison 20130 | -6/Factory | First assault squad dispatched 20469 | -6/Factory | Fabricated Adv. Hacking Suite? 20582 | -6/Factory | Entered Garrison 20582 | -6/Garrison | Accompanied by 9 allies 20684 | -6/Garrison | Garrison Relay disabled 20688 | -6/Garrison | Triggered checkpoint 20730 | -6/Garrison | Expanded RIF knowledge: Zone Cloak 20812 | -6/Garrison | Triggered checkpoint 20814 | -6/Garrison | Triggered checkpoint 20886 | -6/Garrison | Triggered checkpoint 20984 | -6/Garrison | Triggered checkpoint 20984 | -6/Garrison | Garrison Relay disabled 21083 | -6/Garrison | Discovered new exit (range 2) 21276 | -6/Garrison | Triggered checkpoint 21321 | -6/Garrison | Garrison Relay disabled 21339 | -6/Garrison | Discovered new exit (range 84) 21339 | -6/Garrison | Discovered new exit (range 30) 21339 | -6/Garrison | Discovered new exit (range 42) 21799 | -6/Garrison | Entered Factory 21799 | -5/Factory | Accompanied by 3 allies 21799 | -5/Factory | Evolved 2 slots: Propulsion x1, Utility x1 22089 | -5/Factory | Discovered new exit (range 11) 22525 | -5/Factory | Cargo convoy interrupted 22950 | -5/Factory | Repaired Greatsword 22951 | -5/Factory | Spotted B-75 Beast 24705 | -5/Factory | Build established: Wizard-Mutant 25363 | -5/Factory | Fabricated P-80 Master? 25555 | -5/Factory | Fabricated Med. Armored Exoskeleton (x1) 25603 | -5/Factory | Master 6a assimilated hostile W-25 Informer 25785 | -5/Factory | Fabricated P-80 Master? 26090 | -5/Factory | Fabricated P-80 Master? 26131 | -5/Factory | Allies destroyed B-75 Beast 26138 | -5/Factory | Master 6c assimilated hostile H-66 Slayer 26235 | -5/Factory | Master 6f assimilated hostile S-27 Virus 26393 | -5/Factory | Fabricated P-80 Master? 26899 | -5/Factory | First assault squad dispatched 26906 | -5/Factory | Sucked down chute 26906 | -5/Factory | Entered Waste 26907 | -5/Waste | Met a frightened Derelict 26914 | -5/Waste | Found Broken Enh. Force Lance 26921 | -5/Waste | EMP discharged 26950 | -5/Waste | Spotted C-40 Crusher 26955 | -5/Waste | Spotted C-40 Crusher 26960 | -5/Waste | Spotted C-40 Crusher 26965 | -5/Waste | Spotted C-40 Crusher 26983 | -5/Waste | Spotted C-40 Crusher 27021 | -5/Waste | EMP discharged 27021 | -5/Waste | System corruption reached 10% 27026 | -5/Waste | Allies destroyed C-40 Crusher 27050 | -5/Waste | Master 6j assimilated hostile C-40 Crusher 27075 | -5/Waste | Allies destroyed C-40 Crusher 27094 | -5/Waste | Spotted C-40 Crusher 27121 | -5/Waste | EMP discharged 27130 | -5/Waste | Allies destroyed C-40 Crusher 27133 | -5/Waste | Master 6k assimilated hostile C-40 Crusher 27155 | -5/Waste | Discovered new exit (range 11) 27175 | -5/Waste | 9 allies followed down the chute 27221 | -5/Waste | EMP discharged 27312 | -5/Waste | Entered Factory 27312 | -5/Factory | Accompanied by 11 allies 27621 | -5/Factory | Fabricated Y-64 Sentinel? 27856 | -5/Factory | Identified exit to Upper Caves 28097 | -5/Factory | Fabricated M-28 Smith (x1) 28384 | -5/Factory | Master 6k assimilated hostile Y-64 Sentinel 28394 | -5/Factory | Discovered new exit (range 9) 28588 | -5/Factory | Core integrity fell below 50% 28656 | -5/Factory | Destroyed 8 combat bots 28695 | -5/Factory | Lost 6 parts (1p1n3u1w) 28893 | -5/Factory | Build established: Hacker-Mutant 29125 | -5/Factory | Identified exit to Factory 29277 | -5/Factory | Repaired Broken Antimatter Reactor? 29393 | -5/Factory | P-70 Sage assimilated allied Crusher 6b 29572 | -5/Factory | Identified exit to Garrison 29588 | -5/Factory | Garrison activated, responded to threat 29813 | -5/Factory | Core integrity fell below 20% 29976 | -5/Factory | Entered another Factory area 29976 | -4/Factory | Evolved 2 slots: Propulsion x1, Utility x1 30008 | -4/Factory | Build established: Bothacker-Mutant 30075 | -4/Factory | Discovered new exit (range 48) 30087 | -4/Factory | Garrison activated, responded to threat 30159 | -4/Factory | Discovered new exit (range 11) 30192 | -4/Factory | Discovered new exit (range 5) 30303 | -4/Factory | Fabricated Y-64 Sentinel? 30382 | -4/Factory | Fabricated Field Propulsion Array? 30576 | -4/Factory | Discovered new exit (range 13) 30600 | -4/Factory | Identified exit to Upper Caves 30667 | -4/Factory | Fabricated Lgt. Quantum Reactor? 30676 | -4/Factory | Spotted B-86 Titan 30794 | -4/Factory | Build established: Bothacker-Sprinter 30899 | -4/Factory | Discovered new exit (range 14) 31085 | -4/Factory | Discovered new exit (range 10) 31235 | -4/Factory | Fabricated P-80 Master (x2) 31339 | -4/Factory | Fabricated P-80 Master (x2) 31394 | -4/Factory | Repaired Field Propulsion Array? 31474 | -4/Factory | Repaired Field Propulsion Array 31588 | -4/Factory | Fabricated M-36 Artificer? 31624 | -4/Factory | Identified exit to Garrison 31647 | -4/Factory | Master 7b assimilated hostile S-27 Virus 31667 | -4/Factory | Build established: Hacker-Mutant 31686 | -4/Factory | Garrison activated, responded to threat 31688 | -4/Factory | Entered Garrison 31688 | -4/Garrison | Accompanied by 8 allies 31722 | -4/Garrison | Master 7a assimilated hostile Y-64 Sentinel 31818 | -4/Garrison | Triggered checkpoint 31825 | -4/Garrison | Spotted B-86 Titan 31908 | -4/Garrison | Crushed by falling debris 31908 | -4/Garrison | System corruption reached 10% 31939 | -4/Garrison | Lost 3 parts (1p1n1u) 31970 | -4/Garrison | Crushed by falling debris 31971 | -4/Garrison | Crushed by falling debris 31975 | -4/Garrison | Discovered new exit (range 15) 32041 | -4/Garrison | Core integrity fell below 50% 32061 | -4/Garrison | Entered Research 32061 | -3/Research | Evolved 2 slots: Power x1, Propulsion x1 32268 | -3/Research | Build established: Mutant 32404 | -3/Research | Spotted B-86 Titan 32420 | -3/Research | Destroyed B-86 Titan 32755 | -3/Research | Destroyed 9 combat bots 32963 | -3/Research | Lost 4 parts (1p2n1u) 33119 | -3/Research | Lost 12 parts (1p6n4u1w) 33146 | -3/Research | Found Gamma Bomb Array 33197 | -3/Research | Spotted B-86 Titan 33244 | -3/Research | Identified exit to Garrison 33244 | -3/Research | Entered Garrison 33300 | -3/Garrison | Spotted Executioner 33300 | -3/Garrison | Spotted Executioner 33379 | -3/Garrison | Core integrity fell below 50% 33386 | -3/Garrison | Triggered checkpoint 33410 | -3/Garrison | Core integrity fell below 20% 33418 | -3/Garrison | Destroyed by X-77 Beamer with Gatling Laser Last Messages --------------- 33397_ Slug penetrates Wall. 33398_ Penetrated by Slug. 33401_ Acquired Enh. Quantum Rifle. 33403_ Penetrated by Slug. 33403_ RIF reveals location of phase wall. 33405_ X-77 Beamer springs to life. 33406_ RIF reveals location of phase wall. 33406_ W-44 Eye springs to life. 33407_ Slug penetrates Wall. 33407_ Acquired Biometal Heavy Treads. 33407_ Penetrated by Slug. 33410_ Quantum Reactor destroyed. 33410_ Biometal Heavy Treads destroyed. 33410_ Enh. Nova Cannon destroyed. 33412_ Acquired Quantum Reactor. 33413_ Overheating: System interference. 33413_ Adv. Corruption Screen temporarily disabled. 33414_ Biometal Heavy Treads destroyed. 33415_ Acquired Lgt. Quantum Reactor. 33417_ Enh. Quantum Rifle destroyed. Map ----- +----------------------------------------------------+ | ???????????????????????????????????????????? | | ???????????????????????????????????????????? | | ???????????????????????????????????????????? | | ???????????????????????????????????????????? | | ???????????????????????????????????????????? | | ???????????????????????????????????????????? | | ???????????????????????????????????????????? | | ???????????????????????????????????????????? | | ???????????????????????????????????????????? | | ???????????????????????????????? #???????? | | ???????????????????????????????? #???????? | | ???????????????????????????????? #???????? | | ???????????????????????????????? #???????? | | ???????????????????????????????? #???????? | | ???????????????????????????????? #???????? | | ???????????????????????????????? #???????? | | ???????????????????????????????# #???????? | | ???????????????????????????????# #???????? | | ???????????????????????????????# #???????? | | ?????????????????############??# #???????? | | ?????????????????#""""""""""#??# ###?????? | | ?????????????????# h ["#### ####### | | ?????????????????#"" ssh + + ##! | | ?????????????????#" sx;; g + #?# ##! | | ?????????????????#" xE ; ## ###?# ##! | | ?????????????????#"@ x + w "# #???# ##! | | ?????????????????#"] x+++ ## #???# | | ?????????????????#"" ## #???# ##! | | ?????????????????#"""=*=]*="#### #???# ### | | ?????????????????#""""""""""#??# #???# #?? | | ???????????####??############??# #???# #?? | | ??????????##! ################## ##### ### | | ??????????#! =%=== " | | ??????????#! ## *%[[ + | | ??????????##!!##+#### ######### ######### | | ???????????##### #??# #???????# #???????? | | ???????????????# #??" #???????# #???????? | | ???????????????# ??" ???????# +???????? | | ???????????????###??" "??????# #???????? | | ???????????????????g" "#?????# #???????? | | ????????????????????" #"#?????# #???????? | | ????????????????????# ###?????# ???????? | | ????????????????????##+#???????# ???????? | | ???????????????????????????????+ ??????? | | ???????????????????????????????######??????? | | ???????????????????????????????????????????? | | ???????????????????????????????????????????? | | ???????????????????????????????????????????? | | ???????????????????????????????????????????? | | ???????????????????????????????????????????? | +----------------------------------------------------+ Best States ------------- Heat Dissipation 77 Coolant Potential 100 Energy Generation 57 Energy Capacity 700 Matter Stores 300 Matter Capacity 300 Sight Range 16 Terrain Scan Density 10 ECM Strength 2 Jamming Range 16 Corruption Block 20 Armor Coverage 150 Evasion (%) 64 Launcher Accuracy 40 Recoil Reduction 6 Offensive Hacking 60 Defensive Hacking 26 Relay Coupler Types 3 Relay Coupler Value 48 Authchip Count 17 Trap Extractor Capacity 6 Item Schematics ----------------- Adv. Hacking Suite | -8/Materials | Scanalyzed Imp. Transmission Jammer | -8/Materials | Scanalyzed Nuclear Pulse Array | -8/Materials | Scanalyzed Transmission Jammer | -7/Factory | Hacked System Purifier | -6/Factory | Scanalyzed Med. Armored Exoskeleton | -5/Factory | Scanalyzed Com. HERF Cannon | -5/Factory | Hacked Imp. Linear Gravjet | -5/Factory | Hacked Hcp. Storage Unit | -5/Factory | Hacked Imp. Antigrav System | -5/Factory | Hacked Hyp. Mass Driver | -5/Factory | Hacked Field Propulsion Array | -4/Factory | Hacked Cmb. Antigrav System | -4/Factory | Hacked Imp. Actuator Array | -4/Factory | Extracted Chainsword | -4/Factory | Extracted Phase Shifter | -4/Factory | Extracted Disruptor Cannon | -4/Factory | Extracted Armor Integrity Analyzer | -4/Factory | Extracted Nuclear Pulse Thruster | -4/Factory | Extracted Force Lance | -4/Factory | Extracted Hacking Suite | -4/Factory | Extracted Imp. System Shield | -4/Factory | Extracted Hvy. Disruptor Cannon | -4/Factory | Extracted Recoil Nullifier | -4/Factory | Extracted Dispersion Rifle | -4/Factory | Extracted Stasis Canceller | -4/Factory | Extracted Cmb. Gravmag System | -4/Factory | Extracted Adv. Power Amplifier | -4/Factory | Extracted Phase Gun | -4/Factory | Extracted Thermal Shield | -4/Factory | Extracted Antimatter Reactor | -4/Factory | Extracted Robot Schematics ------------------ M-13 Machinist | -10/Materials | Hacked P-60 Hacker | -7/Factory | Hacked I-36 Angel | -7/Factory | Hacked D-53 Grenadier | -7/Factory | Hacked M-14 Sweeper | -7/Factory | Hacked P-80 Master | -5/Factory | Hacked Y-72 Warden | -5/Factory | Hacked M-28 Smith | -5/Factory | Hacked M-36 Artificer | -4/Factory | Hacked Fabricated ------------ Adv. Hacking Suite | x1 | -7/Factory | Authchip P-60 Hacker | x2 | -7/Factory | Authchip P-60 Hacker | x2 | -7/Factory | Authchip P-60 Hacker | x2 | -7/Factory | Authchip M-13 Machinist | x1 | -7/Factory | Authchip P-60 Hacker | x2 | -7/Factory | Authchip P-60 Hacker | x2 | -7/Factory | Authchip P-60 Hacker | x2 | -7/Factory | Authchip P-60 Hacker | x2 | -7/Factory | Authchip P-60 Hacker | x2 | -7/Factory | Authchip B-48 Gladiator | x3 | -7/Factory | Preloaded, Authchip P-60 Hacker | x2 | -7/Factory | Authchip P-60 Hacker | x2 | -7/Factory | Authchip P-60 Hacker | x2 | -6/Factory | Authchip P-60 Hacker | x2 | -6/Factory | Authchip Adv. Hacking Suite | x1 | -6/Factory P-80 Master | x2 | -5/Factory Med. Armored Exoskeleton | x1 | -5/Factory | Authchip P-80 Master | x2 | -5/Factory | Authchip P-80 Master | x2 | -5/Factory P-80 Master | x2 | -5/Factory Y-64 Sentinel | x2 | -5/Factory | Preloaded M-28 Smith | x1 | -5/Factory Y-64 Sentinel | x2 | -4/Factory | Preloaded Field Propulsion Array | x2 | -4/Factory | Authchip Lgt. Quantum Reactor | x2 | -4/Factory | Preloaded P-80 Master | x2 | -4/Factory | Authchip P-80 Master | x2 | -4/Factory | Authchip M-36 Artificer | x1 | -4/Factory Alien Tech Used ----------------- None Achievements -------------- None Challenges ------------ None Game ------ Seed SpreadIntegrityCore Manual? 0 Play Time 06:42:06 Cumulative 401.8 hours Start 2023.09.29 @ 18:53:18 End 2023.10.04 @ 16:03:52 Sessions 5 Manual Loads 0 Difficulty Rogue Special Mode None Game No. 246 Rogue 243 Adventurer 3 Explorer 0 Win Type - Total 7 Types 6/0/1/0/0/0/0/0/0 Lore% 69 Gallery% 76 Achievement% 66 Wizard Run 0 Options --------- ASCII 0 Keyboard 0 Movement Numpad Keybinds 0 Fullscreen 1 Font 18/SmallcapsGlow Map View 76x50 Tactical HUD 1 Map Filters NONE Filters NONE Steam 1 RUN: b2364bf5-ffb4-4c0d-8450-39eca49b12ee